﻿TransNo,Summary of Purpose,Service Area,Supplier,Doc Date,Amount
300005192,Transport Operators - RTI,Integrated Transport Authority,Idox Software Ltd,24/02/2022,504.00 
300005301,General Grants,Innovation & Sector Development,KEEP ART IT LTD,08/03/2022,522.00 
300005221,General Grants,Innovation & Sector Development,LUNA 9 DESIGN LTD,28/02/2022,525.00 
300005160,Creative Design,"People, Skills & Inclusive Growth",MCLELLAN DESIGN LIMITED,22/02/2022,525.00 
300004806,General Grants,Innovation & Sector Development,KEEP ART IT LTD,12/01/2022,540.00 
300005218,General Grants,Innovation & Sector Development,Redacted - Sole Trader,28/02/2022,540.00 
300005256,Transport Operators - Bus Information,Integrated Transport Authority,BRISTOL CITY COUNCIL GEN ACCOUNT,03/03/2022,561.00 
300004611,Fees - Legal,"People, Skills & Inclusive Growth",VEALE WASBROUGH VIZARDS LLP,13/12/2021,570.90 
300005242,Equipment Purchase - General,People & Assets,NORTH SOMERSET COUNCIL,03/03/2022,577.79 
300005368,Other LAs - Bristol City Council,Integrated Transport Authority,BRISTOL CITY COUNCIL GEN ACCOUNT,16/03/2022,578.54 
300005409,Other LAs - Bristol City Council,Integrated Transport Authority,BRISTOL CITY COUNCIL GEN ACCOUNT,18/03/2022,578.54 
300004994,Transport Operators - Bus Information,Integrated Transport Authority,INSIGHT DIRECT (UK) Ltd,02/02/2022,581.94 
300005210,Transport Operators - Bus Information,Integrated Transport Authority,INSIGHT DIRECT (UK) Ltd,28/02/2022,581.94 
300004903,General Grants,Innovation & Sector Development,Redacted - Sole Trader,31/01/2022,590.00 
300005259,Fees - Legal,"People, Skills & Inclusive Growth",VEALE WASBROUGH VIZARDS LLP,03/03/2022,596.50 
300005414,Consultants - Project Based Work,"Enterprise, Inward Investment & Trade",THE MENTORING COLLECTIVE LTD,18/03/2022,600.00 
300005417,Consultants - Project Based Work,"Enterprise, Inward Investment & Trade",THE MENTORING COLLECTIVE LTD,18/03/2022,600.00 
300005087,General Grants,Innovation & Sector Development,Redacted - Sole Trader,11/02/2022,600.00 
300005344,General Grants,Innovation & Sector Development,Redacted - Sole Trader,11/03/2022,600.00 
300005451,Transport Operators - Bus Information,Integrated Transport Authority,TALBOT OWEN LIMITED,21/03/2022,601.70 
300005290,Payments to Others,Capital Integrated Transport Authority,DAVID RAYNER T/A DIRECT MAIL SYSTEMS,04/03/2022,617.19 
300005462,Consultants - Project Based Work,Integrated Transport Authority,ATKINS LIMITED,22/03/2022,618.23 
300004677,General Grants,Innovation & Sector Development,Redacted - Sole Trader,20/12/2021,625.00 
300004808,General Grants,Innovation & Sector Development,Redacted - Sole Trader,12/01/2022,625.00 
300005092,General Grants,Innovation & Sector Development,Redacted - Sole Trader,11/02/2022,625.00 
300005085,General Grants,Innovation & Sector Development,Redacted - Sole Trader,11/02/2022,630.00 
300005167,Consultants - Project Based Work,"Enterprise, Inward Investment & Trade",THOMAS JARDINE & CO,22/02/2022,637.50 
300005373,Consultants - Project Based Work,"Enterprise, Inward Investment & Trade",THOMAS JARDINE & CO,16/03/2022,637.50 
300005148,General Grants,Innovation & Sector Development,JACKY PUZEY EMBROIDERY LTD,18/02/2022,640.00 
300004720,Transport Operators - RTI,Integrated Transport Authority,ENTERPRISE RENT A CAR,04/01/2022,642.39 
300004741,Transport Operators - MetroBus,Integrated Transport Authority,Lawrence Weston Community Transport,05/01/2022,647.04 
300004924,Services - Other,People & Assets,BATH & NORTH EAST SOMERSET COUNCIL GENERAL SUSPSENSE ACCOUNT,31/01/2022,650.00 
300005091,General Grants,Innovation & Sector Development,Redacted - Sole Trader,11/02/2022,660.00 
300005284,General Grants,Innovation & Sector Development,Redacted - Sole Trader,04/03/2022,668.00 
300004804,Transport Operators - Bus Information,People & Assets,RANDALLS OFFICE FURNITURE LTD,12/01/2022,674.00 
300005152,Venue Hire,Mayoral,SS GREAT BRITAIN TRADING LTD,21/02/2022,682.00 
300005216,Consultants - Legal,Legal & Democratic Services,WEIGHTMANS LLP,28/02/2022,685.00 
300004693,Web Hosting,People & Assets,CLEARCOURSE MEMBERSHIP SERVICES LTD (FELINESOFT),29/10/2021,690.45 
300004839,Advertising,People & Assets,HB EDITORIAL SERVICES LTD T/A LOCAL GOVERNMENT LAWYER,29/10/2021,695.00 
300004560,Transport Operators - Bus Information,Integrated Transport Authority,PRINT & STATIONERY MANAGEMENT CO LTD T/A PRISM,07/12/2021,707.98 
300005524,Consultants - Legal,Capital Delivery Team,BEVAN BRITTAN LLP,25/03/2022,717.00 
300004794,Consultants - Project Based Work,Transport,WSP UK LIMITED,11/01/2022,738.18 
300005484,Equipment Purchase - General,Integrated Transport Authority,NORTH SOMERSET COUNCIL,23/03/2022,746.32 
300005089,General Grants,Innovation & Sector Development,Redacted - Sole Trader,11/02/2022,750.00 
300005532,General Grants,Innovation & Sector Development,Redacted - Sole Trader,27/03/2022,750.00 
300004798,General Grants,Innovation & Sector Development,SQUAREBIRD LLP,11/01/2022,750.00 
300005404,General Grants,Innovation & Sector Development,SQUAREBIRD LLP,17/03/2022,750.00 
300004694,Web Hosting,People & Assets,CLEARCOURSE MEMBERSHIP SERVICES LTD (FELINESOFT),29/10/2021,750.00 
300004848,Web Hosting,Legal & Democratic Services,FLOATING HARBOUR STUDIOS LTD,19/01/2022,750.00 
300004697,Equipment Purchase - General,South West Energy Hub,QUANTIQ TECHNOLOGY LTD,21/12/2021,750.00 
300005386,Venue Hire,Legal & Democratic Services,FLOATING HARBOUR STUDIOS LTD,17/03/2022,756.40 
300004712,Equipment Purcahse - Contracts,"People, Skills & Inclusive Growth",DATA CUBED LTD,29/12/2021,760.00 
300005369,Other LAs - Bristol City Council,Integrated Transport Authority,BRISTOL CITY COUNCIL GEN ACCOUNT,16/03/2022,767.98 
300005269,Creative Design,Capital Integrated Transport Authority,Benji Graphics (A Division of Teklagraf Ltd),03/03/2022,768.00 
300004780,Services - Other,People & Assets,CHANGING PEOPLE LTD,10/01/2022,790.00 
300005158,Printing & Stationery - General,Business & Skills,MCLELLAN DESIGN LIMITED,22/02/2022,800.00 
300005266,Transport Operators - MetroBus,Integrated Transport Authority,Lawrence Weston Community Transport,03/03/2022,833.28 
300005265,Transport - Other,Financial Services,CLICK TRAVEL LTD,03/03/2022,839.72 
300004744,Equipment Purchase - Computer Software,People & Assets,NORTH SOMERSET COUNCIL,05/01/2022,845.50 
300005522,Exhibition,"Enterprise, Inward Investment & Trade",INNOVATE FINANCE LTD,25/03/2022,845.75 
300004966,Consultants - Project Based Work,Capital Integrated Transport Authority,WSP UK LIMITED,02/02/2022,854.55 
300005299,General Grants,Innovation & Sector Development,Redacted - Sole Trader,08/03/2022,875.00 
300005536,General Grants,Innovation & Sector Development,Redacted - Sole Trader,27/03/2022,900.00 
300004898,Fees - Business Case Reviews,Legal & Democratic Services,BATH & NORTH EAST SOMERSET COUNCIL GENERAL SUSPSENSE ACCOUNT,27/01/2022,900.00 
300005378,Equipment Purchase - General,Integrated Transport Authority,NORTH SOMERSET COUNCIL,16/03/2022,903.42 
300004789,Transport Operators - Bus Information,Integrated Transport Authority,A D Young Technical Services Ltd,15/12/2021,904.57 
300004740,Transport Operators - Concessionary Fares,Integrated Transport Authority,Green Community Travel Ltd,05/01/2022,908.00 
300004756,Transport Operators - Concessionary Fares,Integrated Transport Authority,ITSO Limited,07/01/2022,909.00 
300004979,General Grants,Innovation & Sector Development,Redacted - Sole Trader,02/02/2022,915.00 
300005122,Transport Operators - MetroBus,Integrated Transport Authority,Lawrence Weston Community Transport,17/02/2022,917.76 
300005093,Transport Operators - Bus Information,Integrated Transport Authority,INSIGHT DIRECT (UK) Ltd,14/02/2022,929.00 
300004782,Equipment Purcahse - Contracts,"People, Skills & Inclusive Growth",DATA CUBED LTD,10/01/2022,950.00 
300004738,Fees - Legal,"People, Skills & Inclusive Growth",VEALE WASBROUGH VIZARDS LLP,05/01/2022,950.00 
300005354,Transport Operators - Concessionary Fares,Integrated Transport Authority,CLOUDBUY LIMITED,14/03/2022,960.00 
300005437,Miscellaneous,"Enterprise, Inward Investment & Trade",STEERS MCGILLAN EVES DESIGN LTD,21/03/2022,969.00 
300005499,Transport Operators - Bus Information,Integrated Transport Authority,TOOLOUT LIMITED TA JOINTING TECHNOLOGIES,24/03/2022,994.02 
300004996,Consultants - Project Based Work,"Enterprise, Inward Investment & Trade",COOL VENTURES LTD,03/02/2022,"1,000.00 "
300004929,Consultants - Project Based Work,"Enterprise, Inward Investment & Trade",SME ACTIVE SOLUTIONS LTD T/A BUSINESS DOCTORS,31/01/2022,"1,000.00 "
300004986,Consultants - Project Based Work,"Enterprise, Inward Investment & Trade",THE MENTORING COLLECTIVE LTD,02/02/2022,"1,000.00 "
300005227,Consultants - Project Based Work,"Enterprise, Inward Investment & Trade",FIG MANAGEMENT SERVICES,28/02/2022,"1,000.00 "
300004735,General Grants,Innovation & Sector Development,THE MUSUEM OF EAST ASIAN ART,04/01/2022,"1,000.00 "
300004982,General Grants,Innovation & Sector Development,THAT MEDIA THING LTD,02/02/2022,"1,000.00 "
300005538,General Grants,Innovation & Sector Development,Redacted - Sole Trader,27/03/2022,"1,000.00 "
300004680,General Grants,Innovation & Sector Development,DIGITAL VISITOR LIMITED,20/12/2021,"1,000.00 "
300004809,General Grants,Innovation & Sector Development,Bristol 24/7 CIC,12/01/2022,"1,000.00 "
300004686,Consultancy Costs,Business & Skills,WAVEHILL LTD,21/12/2021,"1,000.00 "
300005258,Fees - Other,"People, Skills & Inclusive Growth",MACKAY THOMAS ASSOC LTD,03/03/2022,"1,000.00 "
300005180,Creative Design,"People, Skills & Inclusive Growth",HEY! WHAT? LIMITED,23/02/2022,"1,012.50 "
300005097,Electricity Charges,People & Assets,CWDTL LTD CLIENT AC RE NT COMMON RECEIPTS,10/02/2022,"1,015.76 "
300004931,Electricity Charges,People & Assets,CWDTL LTD CLIENT AC RE NT COMMON RECEIPTS,31/01/2022,"1,045.03 "
300004729,Equipment Purchase - General,South West Energy Hub,QUANTIQ TECHNOLOGY LTD,04/01/2022,"1,050.00 "
300004854,Equipment Purchase - General,People & Assets,NORTH SOMERSET COUNCIL,20/01/2022,"1,059.30 "
300005475,Consultants - Project Based Work,Transport,WSP UK LIMITED,23/03/2022,"1,096.23 "
300005432,Other LAs - Bristol City Council,Capital Delivery Team,BRISTOL CITY COUNCIL GEN ACCOUNT,21/03/2022,"1,098.45 "
300005067,Miscellanous Expenses,Housing & Planning,REDACTIVE PUBLISHING LTD,09/02/2022,"1,100.00 "
300004910,Fees - Legal,Legal & Democratic Services,11KBW LTD (NG QC),31/01/2022,"1,100.00 "
300005251,Transport Operators - Concessionary Fares,Integrated Transport Authority,Green Community Travel Ltd,03/03/2022,"1,108.00 "
300004790,Transport Operators - Bus Information,Integrated Transport Authority,A D Young Technical Services Ltd,15/12/2021,"1,113.00 "
300005016,Seconded Staff Costs - Salary Costs,Integrated Transport Authority,GLOUCESTERSHIRE COUNTY COUNCIL,07/02/2022,"1,114.00 "
300004905,General Grants,Innovation & Sector Development,Redacted - Sole Trader,31/01/2022,"1,120.00 "
300004978,General Grants,Innovation & Sector Development,Redacted - Sole Trader,02/02/2022,"1,120.37 "
300005440,"Stands, Banners and Displays","Enterprise, Inward Investment & Trade",STEERS MCGILLAN EVES DESIGN LTD,21/03/2022,"1,125.00 "
300005442,"Stands, Banners and Displays","Enterprise, Inward Investment & Trade",STEERS MCGILLAN EVES DESIGN LTD,21/03/2022,"1,125.00 "
300005364,Printing,Mayoral,PEPPER COMMUNICATIONS LTD,16/03/2022,"1,147.50 "
300005134,Transport Operators - Bus Information,People & Assets,INSIGHT DIRECT (UK) Ltd,17/02/2022,"1,163.88 "
300005113,Transport Operators - Bus Information,Integrated Transport Authority,ENTERPRISE RENT A CAR,07/12/2021,"1,181.69 "
300005101,Transport Operators - Bus Information,Integrated Transport Authority,PINDAR TRAVEL INFORMATION SYSTEMS LTD T/A PINDAR CREATIVE,14/02/2022,"1,185.00 "
300004774,Consultants - Project Based Work,Capital Integrated Transport Authority,WEIGHTMANS LLP,10/01/2022,"1,189.00 "
300005543,Advertising,Mayoral,BRIGSTOWE MEDIA LTD,28/03/2022,"1,190.00 "
300004957,Transport Operators - Concessionary Fares,Integrated Transport Authority,Green Community Travel Ltd,02/02/2022,"1,196.00 "
300005217,Services - Other,People & Assets,Redacted - Sole Trader,28/02/2022,"1,200.00 "
300005109,Services - Other,People & Assets,Redacted - Sole Trader,07/12/2021,"1,200.00 "
300005353,Transport Operators - Bus Information,Integrated Transport Authority,PINDAR TRAVEL INFORMATION SYSTEMS LTD T/A PINDAR CREATIVE,15/03/2022,"1,201.00 "
300004884,Equipment Purchase - General,Integrated Transport Authority,ATKINS LIMITED,26/01/2022,"1,251.25 "
300004837,Transport Operators - Concessionary Fares,Integrated Transport Authority,ESP Systex Limited,18/01/2022,"1,265.00 "
300004687,Consultants - Project Based Work,Capital Integrated Transport Authority,WSP UK LIMITED,21/12/2021,"1,271.40 "
300004363,Consultants - Specialist Advice,Financial Services,Redacted - Sole Trader,02/11/2021,"1,300.00 "
300005539,Consultants - Specialist Advice,Financial Services,Redacted - Sole Trader,28/03/2022,"1,300.00 "
300004703,Agency Costs - Temporary Staff,Capital Delivery Team,CARLISLE STAFFING PLC T/A GUIDANT GLOBAL,23/12/2021,"1,300.00 "
300004989,Agency Costs - Temporary Staff,Capital Delivery Team,CARLISLE STAFFING PLC T/A GUIDANT GLOBAL,02/02/2022,"1,300.00 "
300005333,Agency Costs - Temporary Staff,Capital Delivery Team,CARLISLE STAFFING PLC T/A GUIDANT GLOBAL,11/03/2022,"1,300.00 "
300005501,Other Fees,Strategy & Policy,EXPLORER DOME LTD,24/03/2022,"1,300.00 "
300004749,Equipment Purchase - General,People & Assets,NORTH SOMERSET COUNCIL,05/01/2022,"1,300.05 "
300005068,Photography,Mayoral,Redacted - Sole Trader,09/02/2022,"1,315.00 "
300004842,Services - Other,People & Assets,CRONER GROUP LTD,19/01/2022,"1,320.00 "
300005288,Consultants - Project Based Work,Capital Integrated Transport Authority,WEIGHTMANS LLP,04/03/2022,"1,359.00 "
300004817,Cleaning - Contract,People & Assets,ATLAS FM LTD,14/01/2022,"1,393.73 "
300005058,Cleaning - Contract,People & Assets,ATLAS FM LTD,08/02/2022,"1,393.73 "
300005296,Cleaning - Contract,People & Assets,ATLAS FM LTD,08/03/2022,"1,393.73 "
300004981,General Grants,Innovation & Sector Development,BRISTOL FESTIVALS LTD,02/02/2022,"1,437.50 "
300005245,Materials,People & Assets,NORTH SOMERSET COUNCIL,03/03/2022,"1,449.42 "
300005422,Consultants - Project Based Work,Capital Delivery Team,WSP UK LIMITED,18/03/2022,"1,467.00 "
300005162,Agency Costs - Temporary Staff,Strategy & Policy,CENTRE FOR CITIES,22/02/2022,"1,467.21 "
300004919,Consultants - Project Based Work,"Enterprise, Inward Investment & Trade",NORTH SOMERSET ENTERPRISE AGENCY LTD,31/01/2022,"1,500.00 "
300005213,Consultants - Project Based Work,"Enterprise, Inward Investment & Trade",COOL VENTURES LTD,28/02/2022,"1,500.00 "
300005123,Consultants - Project Based Work,"Enterprise, Inward Investment & Trade",THE MENTORING COLLECTIVE LTD,17/02/2022,"1,500.00 "
300005100,Consultants - Project Based Work,"Enterprise, Inward Investment & Trade",SME ACTIVE SOLUTIONS LTD T/A BUSINESS DOCTORS,14/02/2022,"1,500.00 "
300005461,Consultants - Project Based Work,"Enterprise, Inward Investment & Trade",SCHOOL FOR SOCIAL ENTREPRENEURS,22/03/2022,"1,500.00 "
300005400,Consultants - Project Based Work,"Enterprise, Inward Investment & Trade",FIG MANAGEMENT SERVICES,17/03/2022,"1,500.00 "
300005447,"Stands, Banners and Displays","Enterprise, Inward Investment & Trade",STEERS MCGILLAN EVES DESIGN LTD,21/03/2022,"1,500.00 "
300004814,General Grants,Innovation & Sector Development,Redacted - Sole Trader,13/01/2022,"1,500.00 "
300004902,General Grants,Innovation & Sector Development,SOTO DIGITAL LTD,31/01/2022,"1,500.00 "
300005018,General Grants,Innovation & Sector Development,CENTRAL ELEMENT LTD (TRADING AS MAKE THE BREAK),07/02/2022,"1,500.00 "
300005358,General Grants,Innovation & Sector Development,Redacted - Sole Trader,14/03/2022,"1,500.00 "
300005172,Fees - Other,Legal & Democratic Services,SOUTH WEST COUNCILS,23/02/2022,"1,535.00 "
300005551,Consultants - Project Based Work,Capital Integrated Transport Authority,WEIGHTMANS LLP,29/03/2022,"1,575.00 "
300005326,Equipment Purchase - Computer Hardware,Integrated Transport Authority,NORTH SOMERSET COUNCIL,09/03/2022,"1,575.89 "
300005425,Consultants - Project Based Work,Transport,WSP UK LIMITED,18/03/2022,"1,577.40 "
300005102,Transport Operators - Bus Information,Integrated Transport Authority,PINDAR TRAVEL INFORMATION SYSTEMS LTD T/A PINDAR CREATIVE,14/02/2022,"1,584.00 "
300005149,Consultants - Specialist Advice,Innovation & Sector Development,SMALT INNOVATION LIMITED,18/02/2022,"1,600.00 "
300005138,General Grants,Innovation & Sector Development,Redacted - Sole Trader,17/02/2022,"1,650.00 "
300004934,Consultants - Project Based Work,Capital Integrated Transport Authority,AECOM,02/02/2022,"1,692.00 "
300005535,General Grants,Innovation & Sector Development,Redacted - Sole Trader,27/03/2022,"1,700.00 "
300004797,General Grants,Innovation & Sector Development,2BU PRODUCTIONS LTD,11/01/2022,"1,700.00 "
300004723,Consultants - Project Based Work,Housing & Planning,ATKINS LIMITED,15/12/2021,"1,700.65 "
300004877,Website Developemt,People & Assets,MCLELLAN DESIGN LIMITED,26/01/2022,"1,710.00 "
300005275,Transport Operators - Bus Information,Integrated Transport Authority,ENTERPRISE RENT A CAR,04/03/2022,"1,711.58 "
300005342,General Grants,Innovation & Sector Development,BOX 2 MEDIA LIMITED,11/03/2022,"1,717.50 "
300004961,Consultants - Project Based Work,Capital Integrated Transport Authority,WEIGHTMANS LLP,02/02/2022,"1,719.00 "
300005084,General Grants,Innovation & Sector Development,SOMETHING FAMILIAR LTD,11/02/2022,"1,757.50 "
300005322,Consultants - Project Based Work,Capital Integrated Transport Authority,ATKINS LIMITED,09/03/2022,"1,782.25 "
300004857,General Grants,Innovation & Sector Development,Redacted - Sole Trader,21/01/2022,"1,800.00 "
300005250,Transport Operators - Bus Information,People & Assets,PRINT & STATIONERY MANAGEMENT CO LTD T/A PRISM,03/03/2022,"1,803.00 "
300005470,Other LAs - South Gloucestershire Council,Capital Delivery Team,SOUTH GLOUCESTERSHIRE COUNCIL,23/03/2022,"1,813.27 "
300004954,Transport Operators - Bus Information,Integrated Transport Authority,A D Young Technical Services Ltd,02/02/2022,"1,815.08 "
300004702,Agency Costs - Temporary Staff,Capital Delivery Team,CARLISLE STAFFING PLC T/A GUIDANT GLOBAL,23/12/2021,"1,820.00 "
300004990,Agency Costs - Temporary Staff,Capital Delivery Team,CARLISLE STAFFING PLC T/A GUIDANT GLOBAL,02/02/2022,"1,820.00 "
300004896,Private Businesses,Innovation & Sector Development,NU NANO LTD,27/01/2022,"1,823.49 "
300005449,Advertising,"People, Skills & Inclusive Growth",THE DESIGN PRINT DISTRIBUTION GROUP LTD,21/03/2022,"1,830.00 "
300004704,Transport Operators - MetroBus,Integrated Transport Authority,The Inns Court Community and Family Centre,23/12/2021,"1,845.12 "
300005467,Print Media,Mayoral,PEPPER COMMUNICATIONS LTD,22/03/2022,"1,856.00 "
300005376,Transport Operators - Bus Information,Integrated Transport Authority,First West of England Ltd,16/03/2022,"1,863.00 "
300004765,Consultants - Project Based Work,Capital Integrated Transport Authority,WEIGHTMANS LLP,07/01/2022,"1,872.00 "
300005329,Transport Operators - Bus Information,Integrated Transport Authority,NORTH SOMERSET COUNCIL,09/03/2022,"1,881.60 "
300005385,Transport Operators - Bus Information,Integrated Transport Authority,NORTH SOMERSET COUNCIL,16/03/2022,"1,890.55 "
300004755,Transport Operators - MetroBus,Integrated Transport Authority,Keynsham and District Dial-a-Ride,07/01/2022,"1,897.00 "
300004821,Equipment Purcahse - Contracts,"People, Skills & Inclusive Growth",DATA CUBED LTD,14/01/2022,"1,900.00 "
300004822,Equipment Purcahse - Contracts,"People, Skills & Inclusive Growth",DATA CUBED LTD,14/01/2022,"1,900.00 "
300005343,General Grants,Innovation & Sector Development,WEEKEND:IN LTD,11/03/2022,"1,905.88 "
300003836,Training - Other,"People, Skills & Inclusive Growth",IOEE LTD,03/09/2021,"1,916.00 "
300005357,Promotional Items,"Enterprise, Inward Investment & Trade",MOSTLY MEDIA LTD,14/03/2022,"1,920.00 "
300005349,Transport Operators - MetroBus,Integrated Transport Authority,Keynsham and District Dial-a-Ride,14/03/2022,"1,920.00 "
300004716,Printing & Stationery - General,"Enterprise, Inward Investment & Trade",FREESTYLE DESIGNS BATH LTD,29/12/2021,"1,950.00 "
300004732,General Grants,Innovation & Sector Development,Redacted - Sole Trader,03/12/2021,"1,950.00 "
300004734,General Grants,Innovation & Sector Development,Redacted - Sole Trader,04/01/2022,"1,952.00 "
300004835,Equipment Purchase - General,South West Energy Hub,QUANTIQ TECHNOLOGY LTD,18/01/2022,"1,987.50 "
300005397,Consultants - Project Based Work,"Enterprise, Inward Investment & Trade",THE MENTORING COLLECTIVE LTD,17/03/2022,"2,000.00 "
300005398,Consultants - Project Based Work,"Enterprise, Inward Investment & Trade",THE MENTORING COLLECTIVE LTD,17/03/2022,"2,000.00 "
300005399,Consultants - Project Based Work,"Enterprise, Inward Investment & Trade",FIG MANAGEMENT SERVICES,17/03/2022,"2,000.00 "
300005504,Consultants - Project Based Work,"Enterprise, Inward Investment & Trade",FIG MANAGEMENT SERVICES,24/03/2022,"2,000.00 "
300005531,General Grants,Innovation & Sector Development,DIGITAL VISITOR LIMITED,27/03/2022,"2,000.00 "
300005276,Consultants - Project Based Work,Housing & Planning,ATKINS LIMITED,04/03/2022,"2,004.00 "
300004647,Consultants - Project Based Work,Housing & Planning,ATKINS LIMITED,15/12/2021,"2,007.80 "
300005464,Advertising,Mayoral,THE WEEK IN COMMUNITY LTD,22/03/2022,"2,011.10 "
300005293,Advertising,Mayoral,THE WEEK IN COMMUNITY LTD,08/03/2022,"2,011.10 "
300004711,Consultants - Other,South West Energy Hub,ONGEN LTD,29/12/2021,"2,055.33 "
300004914,Consultants - Other,South West Energy Hub,ONGEN LTD,31/01/2022,"2,055.33 "
300005552,Consultants - Other,South West Energy Hub,ONGEN LTD,29/03/2022,"2,055.33 "
300005211,Consultants - Other,South West Energy Hub,ONGEN LTD,28/02/2022,"2,055.33 "
300005181,Creative Design,Marketing & Communications,HEY! WHAT? LIMITED,23/02/2022,"2,062.50 "
300004853,Equipment Purchase - General,People & Assets,NORTH SOMERSET COUNCIL,20/01/2022,"2,072.89 "
300005310,Transport Operators - RTI,Integrated Transport Authority,M BISSELL DISPLAY LTD,08/03/2022,"2,082.00 "
300005112,Grants - Other,Capital Innovation and Sector Development,TIVARRI LIMITED,07/12/2021,"2,109.25 "
300005244,Equipment Purcahse - Contracts,People & Assets,NORTH SOMERSET COUNCIL,03/03/2022,"2,112.16 "
300004954,Transport Operators - Bus Information,Integrated Transport Authority,A D Young Technical Services Ltd,02/02/2022,"2,139.60 "
300004953,Transport Operators - Bus Information,Integrated Transport Authority,A D Young Technical Services Ltd,02/02/2022,"2,143.60 "
300004802,Agency Costs - Temporary Staff,People & Assets,COMENSURA LTD,12/01/2022,"2,151.56 "
300004829,Training - Other,"Enterprise, Inward Investment & Trade",IOEE LTD,17/01/2022,"2,156.00 "
300005418,Web Hosting,"Enterprise, Inward Investment & Trade",JAMES BLAKE SOLUTIONS LTD T/A JBi DIGITAL,18/03/2022,"2,180.00 "
300004731,Grants - Other,Capital Innovation and Sector Development,THE BRISTOL FAN CO LTD,03/12/2021,"2,182.60 "
300005063,Transport Operators - MetroBus,Integrated Transport Authority,The Inns Court Community and Family Centre,09/02/2022,"2,217.60 "
300004976,Equipment Purchase - General,Integrated Transport Authority,NORTH SOMERSET COUNCIL,02/02/2022,"2,219.81 "
300005277,Videography,Capital Integrated Transport Authority,SUITED AND BOOTED STUDIOS CIC,04/03/2022,"2,222.50 "
300005027,Consultants - Project Based Work,Capital Integrated Transport Authority,WSP UK LIMITED,07/02/2022,"2,238.83 "
300005121,Transport Operators - MetroBus,Integrated Transport Authority,Keynsham and District Dial-a-Ride,17/02/2022,"2,262.00 "
300005393,Promotional Items,"Enterprise, Inward Investment & Trade",MIT PUBLISHING LTD,17/03/2022,"2,270.00 "
300005111,Grants - Other,Capital Innovation and Sector Development,JULIAN HOUSE TRADING LIMITED,07/12/2021,"2,272.41 "
300005377,Equipment Purcahse - Contracts,People & Assets,NORTH SOMERSET COUNCIL,16/03/2022,"2,306.34 "
300005472,Other LAs - South Gloucestershire Council,Capital Delivery Team,SOUTH GLOUCESTERSHIRE COUNCIL,23/03/2022,"2,322.60 "
300005317,Consultants - Project Based Work,Transport,WSP UK LIMITED,08/03/2022,"2,360.21 "
300004932,Web Hosting,People & Assets,CLEARCOURSE MEMBERSHIP SERVICES LTD (FELINESOFT),31/01/2022,"2,375.00 "
300004992,Consultants - Specialist Advice,Innovation & Sector Development,Redacted - Sole Trader,02/02/2022,"2,400.00 "
300005031,Consultants - Specialist Advice,Innovation & Sector Development,Redacted - Sole Trader,07/02/2022,"2,400.00 "
300005127,Web Hosting,South West Energy Hub,JAMES BLAKE SOLUTIONS LTD T/A JBi DIGITAL,17/02/2022,"2,400.00 "
300004777,Transport Operators - MetroBus,Integrated Transport Authority,Keynsham and District Dial-a-Ride,10/01/2022,"2,411.00 "
300005029,Services - Other,People & Assets,BEVAN BRITTAN LLP,07/02/2022,"2,412.00 "
300004968,Consultants - Project Based Work,Transport,WSP UK LIMITED,02/02/2022,"2,441.44 "
300005403,General Grants,Innovation & Sector Development,LUNA 9 DESIGN LTD,17/03/2022,"2,450.00 "
300004805,Transport Operators - Concessionary Fares,Integrated Transport Authority,Four Towns & Vale Link Community Transport,12/01/2022,"2,468.00 "
300004875,Consultants - Specialist Advice,"Enterprise, Inward Investment & Trade",BRISTOL FUTURES GLOBAL LTD,24/01/2022,"2,500.00 "
300005303,Consultants - Specialist Advice,"Enterprise, Inward Investment & Trade",BRISTOL FUTURES GLOBAL LTD,08/03/2022,"2,500.00 "
300005558,Insurance - Other,Financial Services,AON UK LIMITED,29/03/2022,"2,500.00 "
300004964,Meeting Room Hire,People & Assets,THE SCIENCE RESEARCH FOUNDATION,02/02/2022,"2,500.00 "
300005069,Meeting Room Hire,People & Assets,THE SCIENCE RESEARCH FOUNDATION,10/02/2022,"2,500.00 "
300005509,Other LAs - Bristol City Council,South West Energy Hub,DEVON COUNTY COUNCIL,24/03/2022,"2,571.48 "
300005030,Consultants - Specialist Advice,Innovation & Sector Development,MARK LEAVER CONSULTING LTD,07/02/2022,"2,600.00 "
300005182,Consultants - Project Based Work,Grant Management & Assurance,ATKINS LIMITED,23/02/2022,"2,620.00 "
300004785,Setup Costs,"Enterprise, Inward Investment & Trade",BLOOM PROCUREMENT SERVICES LTD,10/01/2022,"2,631.58 "
300004688,Setup Costs,"Enterprise, Inward Investment & Trade",BLOOM PROCUREMENT SERVICES LTD,21/12/2021,"2,631.58 "
300005035,Setup Costs,"Enterprise, Inward Investment & Trade",BLOOM PROCUREMENT SERVICES LTD,07/02/2022,"2,631.58 "
300005308,Setup Costs,"Enterprise, Inward Investment & Trade",BLOOM PROCUREMENT SERVICES LTD,08/03/2022,"2,631.58 "
300005311,Transport Operators - Concessionary Fares,Integrated Transport Authority,Four Towns & Vale Link Community Transport,08/03/2022,"2,680.00 "
300005223,General Grants,Innovation & Sector Development,Redacted - Sole Trader,28/02/2022,"2,799.00 "
300005143,Consultants - Specialist Advice,Innovation & Sector Development,ALTASS LIMITED,07/01/2022,"2,800.00 "
300004927,Consultants - Specialist Advice,Innovation & Sector Development,ENTERPRENASTICS LTD,31/01/2022,"2,800.00 "
300005024,Consultants - Specialist Advice,Innovation & Sector Development,Redacted - Sole Trader,07/02/2022,"2,800.00 "
300005283,General Grants,Innovation & Sector Development,UNDER THE WING LTD,04/03/2022,"2,800.00 "
300005396,Training - Other,South West Energy Hub,WARM COMPANY (SW) LIMITED,17/03/2022,"2,800.00 "
300005207,Transport Operators - Concessionary Fares,Integrated Transport Authority,ESP Systex Limited,28/02/2022,"2,815.00 "
300005282,General Grants,Innovation & Sector Development,CDUK (COLLECTIVE DECISIONS UK) LTD,04/03/2022,"2,820.00 "
300004737,Agency Costs - Temporary Staff,People & Assets,COMENSURA LTD,05/01/2022,"2,853.84 "
300004972,Transport Operators - MetroBus,Integrated Transport Authority,Midsomer Norton & Radstock Dial a Ride,02/02/2022,"2,858.00 "
300005360,CRM,"People, Skills & Inclusive Growth",LAMPLIGHT DATABASE SYSTEMS LTD,15/03/2022,"2,880.00 "
300005055,Transport Operators - Concessionary Fares,Integrated Transport Authority,Four Towns & Vale Link Community Transport,08/02/2022,"2,928.00 "
300004907,Consultants - Annual Contract,Financial Services,LAVAT CONSULTING LTD,31/01/2022,"2,950.00 "
300005219,General Grants,Innovation & Sector Development,WORM EVENTS LTD,28/02/2022,"2,994.00 "
300004906,General Grants,Innovation & Sector Development,Redacted - Sole Trader,31/01/2022,"3,000.00 "
300004980,General Grants,Innovation & Sector Development,ENCOUNTERS FESTIVALS LTD,02/02/2022,"3,000.00 "
300005220,General Grants,Innovation & Sector Development,SABANA FILMS,28/02/2022,"3,000.00 "
300005537,General Grants,Innovation & Sector Development,STORM CONSULTANCY EU LTD,27/03/2022,"3,000.00 "
300005108,Consultants - Specialist Advice,Innovation & Sector Development,BRISTOL FUTURES GLOBAL LTD,15/02/2022,"3,000.00 "
300004904,General Grants,Innovation & Sector Development,Redacted - Sole Trader,31/01/2022,"3,000.00 "
300005450,General Grants,Business & Skills,THEATRE ORCHARD,21/03/2022,"3,000.00 "
300005476,Consultants - Project Based Work,Capital Delivery Team,AECOM,23/03/2022,"3,000.00 "
300004771,Consultants - Project Based Work,Capital Integrated Transport Authority,WSP UK LIMITED,07/01/2022,"3,048.57 "
300005488,Consultants - Project Based Work,Housing & Planning,WSP UK LIMITED,23/03/2022,"3,073.00 "
300005290,Payments to Others,Capital Integrated Transport Authority,DAVID RAYNER T/A DIRECT MAIL SYSTEMS,04/03/2022,"3,085.87 "
300005119,Seconded Staff Costs - Salary Costs,Integrated Transport Authority,BRISTOL CITY COUNCIL GEN ACCOUNT,17/02/2022,"3,166.05 "
300005070,Consultants - Specialist Advice,Innovation & Sector Development,Redacted - Sole Trader,10/02/2022,"3,200.00 "
300005439,Miscellaneous,"Enterprise, Inward Investment & Trade",STEERS MCGILLAN EVES DESIGN LTD,21/03/2022,"3,250.00 "
300005374,Consultants - Project Based Work,Capital Capital & Delivery,AECOM,16/03/2022,"3,300.00 "
300005309,Advertising,Mayoral,BRIGSTOWE MEDIA LTD,08/03/2022,"3,332.00 "
300005278,Equipment Purchase - General,Integrated Transport Authority,ATKINS LIMITED,04/03/2022,"3,347.50 "
300005193,Transport Operators - RTI,Integrated Transport Authority,Idox Software Ltd,24/02/2022,"3,365.00 "
300005004,Transport Operators - MetroBus,Integrated Transport Authority,Midsomer Norton & Radstock Dial a Ride,03/02/2022,"3,443.50 "
300005095,Videography,Marketing & Communications,SUITED AND BOOTED STUDIOS CIC,14/02/2022,"3,474.24 "
300004869,Grants - Other,Capital Innovation and Sector Development,REGENCY PURCHASING GROUP LTD,24/01/2022,"3,543.39 "
300004742,Consultants - Project Based Work,Capital Delivery Team,COPPER CONSULTANCY LTD,05/01/2022,"3,550.00 "
300004772,Consultants - Project Based Work,Capital Integrated Transport Authority,WSP UK LIMITED,07/01/2022,"3,553.00 "
300004686,Consultancy Costs,Business & Skills,WAVEHILL LTD,21/12/2021,"3,650.00 "
300004747,Equipment Purchase - General,"People, Skills & Inclusive Growth",NORTH SOMERSET COUNCIL,05/01/2022,"3,681.43 "
300004768,Consultants - Project Based Work,Capital Integrated Transport Authority,WSP UK LIMITED,07/01/2022,"3,697.51 "
300004763,Grants - Other,Capital Innovation and Sector Development,PICNIC COFFEE LIMITED,07/01/2022,"3,740.63 "
300004922,Transport Operators - Concessionary Fares,Integrated Transport Authority,Social Access Ltd,31/01/2022,"3,807.36 "
300004719,Transport Operators - Supported Bus Services,Integrated Transport Authority,Faresaver Ltd,31/12/2021,"3,808.25 "
300004928,Transport Operators - Supported Bus Services,Integrated Transport Authority,Faresaver Ltd,31/01/2022,"3,808.25 "
300005209,Transport Operators - Supported Bus Services,Integrated Transport Authority,Faresaver Ltd,28/02/2022,"3,808.25 "
300005456,Private Businesses,Innovation & Sector Development,UPFRONT ANALYTICS LIMITED,21/03/2022,"3,814.31 "
300005231,Consultants - Project Based Work,Housing & Planning,WSP UK LIMITED,02/03/2022,"3,821.19 "
300005066,Equipment Purchase - Computer Software,People & Assets,NORTH SOMERSET COUNCIL,09/02/2022,"3,830.00 "
300005125,Equipment Purchase - Computer Software,People & Assets,NORTH SOMERSET COUNCIL,17/02/2022,"3,830.22 "
300005280,Grants - Other,Capital Innovation and Sector Development,KINGSWAY LAUNDRY LTD,04/03/2022,"3,875.00 "
300005545,Consultants - Project Based Work,Housing & Planning,ATKINS LIMITED,28/03/2022,"3,945.25 "
300005325,Consultants - Project Based Work,Strategy & Policy,BUCKMAN ASSOCIATES LTD,09/03/2022,"3,975.00 "
300005401,Consultants - Project Based Work,South West Energy Hub,MEL RESEARCH LIMITED,17/03/2022,"3,980.00 "
300005388,Consultants - Project Based Work,"Enterprise, Inward Investment & Trade",NORTH SOMERSET ENTERPRISE AGENCY LTD,17/03/2022,"4,000.00 "
300004970,Consultants - Project Based Work,Capital Integrated Transport Authority,WSP UK LIMITED,02/02/2022,"4,013.91 "
300004669,Equipment Purcahse - Contracts,"People, Skills & Inclusive Growth",DATA CUBED LTD,20/12/2021,"4,085.00 "
300004999,Transport Operators - Concessionary Fares,Integrated Transport Authority,Social Access Ltd,03/02/2022,"4,116.48 "
300004764,Transport Operators - MetroBus,Integrated Transport Authority,Hartcliffe & Withywood Community Partnership (HWCP),07/01/2022,"4,156.80 "
300005053,Social,"People, Skills & Inclusive Growth",MOSTLY MEDIA LTD,08/02/2022,"4,200.00 "
300004987,Transport Operators - Bus Information,Integrated Transport Authority,PRINT & STATIONERY MANAGEMENT CO LTD T/A PRISM,02/02/2022,"4,212.00 "
300005017,Seconded Staff Costs - Salary Costs,Integrated Transport Authority,"BOURNEMOUTH, CHRISTCHURCH AND POOLE COUNCIL",07/02/2022,"4,226.00 "
300004750,Equipment Purchase - General,People & Assets,NORTH SOMERSET COUNCIL,05/01/2022,"4,282.06 "
300005338,Fees - Subscriptions,"Enterprise, Inward Investment & Trade",BANKSEARCH INFORMATION CONSULTANCY LIMITED,11/03/2022,"4,300.00 "
300005170,Miscellaneous,"Enterprise, Inward Investment & Trade",ZZZ LTD,23/02/2022,"4,300.00 "
300005434,Fees - Subscriptions,Marketing & Communications,DOTDIGITAL,21/03/2022,"4,325.00 "
300005510,Services - Financial,Financial Services,CIPFA BUSINESS LIMITED,24/03/2022,"4,335.00 "
300005229,Seconded Staff Costs - Salary Costs,Housing & Planning,BATH & NORTH EAST SOMERSET COUNCIL GENERAL SUSPSENSE ACCOUNT,28/02/2022,"4,370.67 "
300004691,Seconded Staff Costs - Salary Costs,Housing & Planning,BATH & NORTH EAST SOMERSET COUNCIL GENERAL SUSPSENSE ACCOUNT,29/10/2021,"4,378.14 "
300005060,Consultants - Project Based Work,Capital Delivery Team,ATKINS LIMITED,09/02/2022,"4,452.00 "
300005061,Consultants - Project Based Work,Capital Delivery Team,ATKINS LIMITED,09/02/2022,"4,452.00 "
300004995,Consultants - Project Based Work,"Enterprise, Inward Investment & Trade",COOL VENTURES LTD,03/02/2022,"4,480.00 "
300005546,Consultants - Project Based Work,Housing & Planning,ATKINS LIMITED,28/03/2022,"4,498.87 "
300004727,Transport Operators - MetroBus,Integrated Transport Authority,Kingswood Community Transport,04/01/2022,"4,508.00 "
300005419,Consultants - Project Based Work,"Enterprise, Inward Investment & Trade",COOL VENTURES LTD,18/03/2022,"4,545.00 "
300005243,Equipment Purchase - General,Integrated Transport Authority,NORTH SOMERSET COUNCIL,03/03/2022,"4,647.66 "
300005287,Fees - Audit,Financial Services,GRANT THORNTON UK LLP,04/03/2022,"4,658.50 "
300005163,Consultants - Project Based Work,Marketing & Communications,TPXIMPACT LIMITED,22/02/2022,"4,700.00 "
300005462,Transport Operators - MetroBus,Integrated Transport Authority,ATKINS LIMITED,22/03/2022,"4,750.00 "
300004791,Agency Costs - Temporary Staff,Strategy & Policy,CENTRE FOR CITIES,11/01/2022,"4,754.75 "
300005034,Agency Costs - Temporary Staff,Strategy & Policy,CENTRE FOR CITIES,07/02/2022,"4,754.75 "
300004667,Transport Operators - Supported Bus Services,Integrated Transport Authority,ABUS LTD,17/12/2021,"4,800.00 "
300005453,Promotional Items,"Enterprise, Inward Investment & Trade",SBW ADVERTISING LTD,21/03/2022,"4,815.00 "
300005008,Fees - Other,South West Energy Hub,Sundry Supplier- General,04/02/2022,"4,895.00 "
300005356,Consultants - Project Based Work,"Enterprise, Inward Investment & Trade",SME ACTIVE SOLUTIONS LTD T/A BUSINESS DOCTORS,14/03/2022,"4,900.00 "
300004713,Agency Costs - Temporary Staff,People & Assets,COMENSURA LTD,29/12/2021,"4,902.96 "
300004766,Consultants - Project Based Work,Transport,WSP UK LIMITED,07/01/2022,"4,910.76 "
300004949,Transport Operators - Concessionary Fares,Integrated Transport Authority,ESP Systex Limited,02/02/2022,"4,915.00 "
300005350,Transport Operators - MetroBus,Integrated Transport Authority,Hartcliffe & Withywood Community Partnership (HWCP),14/03/2022,"4,963.20 "
300005133,Miscellaneous,"Enterprise, Inward Investment & Trade",SECTOR GLOBAL LTD,17/02/2022,"5,000.00 "
300005355,Miscellaneous,"Enterprise, Inward Investment & Trade",FLOATING HARBOUR STUDIOS LTD,14/03/2022,"5,000.00 "
300005411,Consultants - Specialist Advice,"Enterprise, Inward Investment & Trade",Redacted - Sole Trader,18/03/2022,"5,000.00 "
300005549,Videography,Innovation & Sector Development,FLOATING HARBOUR STUDIOS LTD,28/03/2022,"5,000.00 "
300005300,General Grants,Innovation & Sector Development,Bristol 24/7 CIC,08/03/2022,"5,000.00 "
300004515,Consultancy Costs,Business & Skills,ACHATES PHILANTHROPY LTD,01/12/2021,"5,000.00 "
300005238,Consultants - Project Based Work,Housing & Planning,WSP UK LIMITED,02/03/2022,"5,000.00 "
300004708,Consultants - Specialist Advice,Housing & Planning,STUART LARKIN AND ASSOCIATES LTD,24/12/2021,"5,000.00 "
300004861,Consultants - Project Based Work,Integrated Transport Authority,BLOOM PROCUREMENT SERVICES LTD,24/01/2022,"5,020.00 "
300005225,Transport Operators - Concessionary Fares,Integrated Transport Authority,Social Access Ltd,28/02/2022,"5,045.76 "
300005060,Consultants - Project Based Work,Capital Delivery Team,ATKINS LIMITED,09/02/2022,"5,112.00 "
300005061,Consultants - Project Based Work,Capital Delivery Team,ATKINS LIMITED,09/02/2022,"5,112.00 "
300004945,Grants to LAs,Capital Grant Management & Assurance,BATH & NORTH EAST SOMERSET COUNCIL GENERAL SUSPSENSE ACCOUNT,02/02/2022,"5,163.00 "
300004971,Agency Costs - Temporary Staff,People & Assets,COMENSURA LTD,02/02/2022,"5,167.28 "
300004845,Agency Costs - Temporary Staff,People & Assets,COMENSURA LTD,19/01/2022,"5,191.33 "
300004886,Agency Costs - Temporary Staff,Capital Delivery Team,CARLISLE STAFFING PLC T/A GUIDANT GLOBAL,26/01/2022,"5,200.00 "
300004847,Radio,Transport,GLOBAL RADIO SERVICES LTD,19/01/2022,"5,244.48 "
300005324,Promotional Items,"Enterprise, Inward Investment & Trade",SBW ADVERTISING LTD,09/03/2022,"5,300.00 "
300005203,Private Businesses,Innovation & Sector Development,GRIDLOCK TECHNOLOGY LTD,28/02/2022,"5,337.23 "
300005076,Consultants - Project Based Work,Capital Delivery Team,ATKINS LIMITED,11/02/2022,"5,343.00 "
300004985,Consultants - Project Based Work,Capital Integrated Transport Authority,UNIVERSITY OF THE WEST OF ENGLAND,02/02/2022,"5,345.00 "
300005315,Consultants - Project Based Work,Housing & Planning,WSP UK LIMITED,08/03/2022,"5,365.67 "
300004894,Private Businesses,Innovation & Sector Development,MOTION IMPOSSIBLE LTD,27/01/2022,"5,416.25 "
300005263,Transport Operators - MetroBus,Integrated Transport Authority,Kingswood Community Transport,03/03/2022,"5,436.00 "
300005222,General Grants,Innovation & Sector Development,LUCKY MARY LTD T/A STUDIO GIGGLE,28/02/2022,"5,500.00 "
300005057,Transport Operators - MetroBus,Integrated Transport Authority,Hartcliffe & Withywood Community Partnership (HWCP),08/02/2022,"5,629.44 "
300004895,Private Businesses,Innovation & Sector Development,BRISTOL INDUSTRIAL & RESEARCH ASSOCIATES LTD,27/01/2022,"5,659.46 "
300004728,Fees - Audit,"People, Skills & Inclusive Growth",RSM UK RISK ASSURANCE SERVICES LLP,04/01/2022,"5,698.00 "
300004893,Fees - Audit,"People, Skills & Inclusive Growth",RSM UK RISK ASSURANCE SERVICES LLP,27/01/2022,"5,698.00 "
300005527,Consultants - Project Based Work,Capital Integrated Transport Authority,WSP UK LIMITED,25/03/2022,"5,744.09 "
300005001,Transport Operators - MetroBus,Integrated Transport Authority,Kingswood Community Transport,03/02/2022,"5,780.00 "
300004743,General Grants,Innovation & Sector Development,GRITTY TALENT GROUP LTD,05/01/2022,"5,805.00 "
300004685,Consultants - Other,South West Energy Hub,ETUDE CONSULTING LIMITED (TRADING NAME ETUDE),21/12/2021,"5,900.00 "
300004816,Promotional Items,"Enterprise, Inward Investment & Trade",SBW ADVERTISING LTD,13/01/2022,"6,000.00 "
300005021,General Grants,Innovation & Sector Development,CELESTIAL LABS LTD,07/02/2022,"6,000.00 "
300005086,General Grants,Innovation & Sector Development,NOUGHTS & ONES LTD,11/02/2022,"6,000.00 "
300005088,General Grants,Innovation & Sector Development,DRUMMER TV LTD,11/02/2022,"6,000.00 "
300005281,General Grants,Innovation & Sector Development,FARRELLY ATKINSON LTD,04/03/2022,"6,000.00 "
300005228,Transport Operators - Supported Bus Services,Integrated Transport Authority,ABUS LTD,28/02/2022,"6,000.00 "
300004748,Equipment Purchase - General,People & Assets,NORTH SOMERSET COUNCIL,05/01/2022,"6,002.65 "
300004695,Other LAs - South Gloucestershire Council,Capital Integrated Transport Authority,SOUTH GLOUCESTERSHIRE COUNCIL,21/12/2021,"6,042.17 "
300005351,Other LAs - Other,Grant Management & Assurance,WEST OF ENGLAND RURAL NETWORK,14/03/2022,"6,054.12 "
300005460,Consultants - Project Based Work,Capital Capital & Delivery,ATKINS LIMITED,21/03/2022,"6,073.04 "
300004840,Consultants - Project Based Work,Capital Delivery Team,AECOM,29/10/2021,"6,079.94 "
300005235,Other LAs - Bristol City Council,South West Energy Hub,BRISTOL CITY COUNCIL GEN ACCOUNT,02/03/2022,"6,108.25 "
300005318,Equipment Purchase - Computer Software,People & Assets,CHARGIFI LIMITED T/A KADENCE,09/03/2022,"6,300.00 "
300004856,Consultants - Project Based Work,Housing & Planning,AECOM,21/01/2022,"6,345.00 "
300004751,Equipment Purchase - General,People & Assets,NORTH SOMERSET COUNCIL,05/01/2022,"6,371.22 "
300005314,Consultants - Project Based Work,Capital Integrated Transport Authority,WSP UK LIMITED,08/03/2022,"6,414.04 "
300005366,Consultants - Project Based Work,Transport,AECOM,16/03/2022,"6,458.00 "
300005312,Consultants - Project Based Work,Transport,WSP UK LIMITED,08/03/2022,"6,462.42 "
300004950,Consultants - Project Based Work,"Enterprise, Inward Investment & Trade",YTKO LTD,02/02/2022,"6,500.00 "
300005461,Consultants - Project Based Work,"Enterprise, Inward Investment & Trade",SCHOOL FOR SOCIAL ENTREPRENEURS,22/03/2022,"6,500.00 "
300005421,Consultants - Project Based Work,Capital Delivery Team,WSP UK LIMITED,18/03/2022,"6,517.65 "
300005321,Consultants - Project Based Work,Housing & Planning,ATKINS LIMITED,09/03/2022,"6,592.50 "
300005141,Grants - Other,Capital Innovation and Sector Development,JEFF WAY ELECTRICAL SERVICES LIMITED,18/02/2022,"6,715.00 "
300005076,Consultants - Project Based Work,Capital Delivery Team,ATKINS LIMITED,11/02/2022,"6,815.00 "
300005132,Consultants - Project Based Work,Housing & Planning,ATKINS LIMITED,17/02/2022,"6,859.00 "
300005481,Other LAs - Bath & North East Somerset Council,Integrated Transport Authority,BATH & NORTH EAST SOMERSET COUNCIL GENERAL SUSPSENSE ACCOUNT,23/03/2022,"7,111.50 "
300004897,Private Businesses,Innovation & Sector Development,INCLUSIVE MEDIA SOLUTIONS LTD,27/01/2022,"7,258.65 "
300004885,Agency Costs - Temporary Staff,Capital Delivery Team,CARLISLE STAFFING PLC T/A GUIDANT GLOBAL,26/01/2022,"7,280.00 "
300005146,Grants - Other,Capital Innovation and Sector Development,PYTCH LIMITED,18/02/2022,"7,335.50 "
300004881,General Grants,South West Energy Hub,SOMERSET COUNTY COUNCIL,26/01/2022,"7,350.00 "
300005173,Agency Costs - Temporary Staff,People & Assets,COMENSURA LTD,23/02/2022,"7,362.66 "
300004724,Consultants - Other,South West Energy Hub,WSP UK LIMITED,04/01/2022,"7,364.00 "
300004770,Consultants - Project Based Work,Capital Integrated Transport Authority,WSP UK LIMITED,07/01/2022,"7,536.87 "
300005059,Private Businesses,Innovation & Sector Development,HBXL GROUP LTD,08/02/2022,"7,575.86 "
300005547,Consultants - Project Based Work,Housing & Planning,ATKINS LIMITED,28/03/2022,"7,600.00 "
300004926,Transport Operators - Supported Bus Services,Integrated Transport Authority,ABUS LTD,31/01/2022,"7,600.00 "
300005062,Consultants - Project Based Work,Capital Integrated Transport Authority,ATKINS LIMITED,09/02/2022,"7,628.69 "
300004891,Equipment Purchase - Computer Hardware,People & Assets,NORTH SOMERSET COUNCIL,26/01/2022,"7,651.20 "
300002371,Transport Operators - Community Transport,Integrated Transport Authority,Kingswood Community Transport,25/02/2021,"7,700.00 "
300005153,Consultants - Project Based Work,Capital Integrated Transport Authority,ATKINS LIMITED,21/02/2022,"7,798.94 "
300005523,Consultants - Project Based Work,Grant Management & Assurance,ATKINS LIMITED,25/03/2022,"7,860.00 "
300005474,Consultants - Project Based Work,Transport,WSP UK LIMITED,23/03/2022,"7,897.84 "
300002372,Transport Operators - Community Transport,Integrated Transport Authority,Green Community Travel Ltd,25/02/2021,"7,900.00 "
300005237,Private Businesses,Innovation & Sector Development,IRIS INTELLIGENCE LTD,02/03/2022,"7,975.10 "
300005457,Private Businesses,Innovation & Sector Development,Bristol 24/7 CIC,21/03/2022,"8,001.57 "
300005166,Consultants - Other,Housing & Planning,WSP UK LIMITED,22/02/2022,"8,033.00 "
300004828,Transport Operators - MetroBus,Integrated Transport Authority,South West Smart Applications Management,17/01/2022,"8,043.03 "
300004692,Consultants - Project Based Work,Capital Delivery Team,ATKINS LIMITED,29/10/2021,"8,074.25 "
300004959,Strategy,"Enterprise, Inward Investment & Trade",CoSTAR UK LIMITED,02/02/2022,"8,121.77 "
300004918,Private Businesses,Innovation & Sector Development,TALLT VENTURES LTD,31/01/2022,"8,245.95 "
300005130,Other LAs - Bath & North East Somerset Council,Integrated Transport Authority,BATH & NORTH EAST SOMERSET COUNCIL GENERAL SUSPSENSE ACCOUNT,17/02/2022,"8,337.98 "
300005184,Consultants - Project Based Work,Capital Integrated Transport Authority,AECOM,23/02/2022,"8,384.00 "
300004730,Grants - Other,Capital Innovation and Sector Development,GRAHAM CARRUTHERS PARTNERSHIP LTD T/A GCP CHARTERED ARCHITECTS,03/12/2021,"8,399.00 "
300005489,Consultants - Project Based Work,Housing & Planning,WSP UK LIMITED,23/03/2022,"8,425.23 "
300005060,Consultants - Project Based Work,Capital Delivery Team,ATKINS LIMITED,09/02/2022,"8,436.00 "
300005107,Consultants - Project Based Work,Transport,WSP UK LIMITED,14/02/2022,"8,569.05 "
300005529,Strategy,"Enterprise, Inward Investment & Trade",LNRS DATA SERVICES LTD,27/03/2022,"8,700.00 "
300004793,Consultants - Project Based Work,Transport,WSP UK LIMITED,11/01/2022,"8,737.58 "
300004960,Seconded Staff Costs - Salary Costs,Housing & Planning,BATH & NORTH EAST SOMERSET COUNCIL GENERAL SUSPSENSE ACCOUNT,02/02/2022,"8,741.34 "
300004503,Consultants - Project Based Work,Capital Integrated Transport Authority,WSP UK LIMITED,30/11/2021,"8,778.37 "
300005427,Consultants - Project Based Work,Transport,WSP UK LIMITED,18/03/2022,"8,919.27 "
300004882,Seconded Staff Costs - Salary Costs,South West Energy Hub,BUILDING RESEARCH ESTABLISHMENT LTD,26/01/2022,"9,159.84 "
300004967,Consultants - Project Based Work,Capital Integrated Transport Authority,WSP UK LIMITED,02/02/2022,"9,296.89 "
300005347,Consultants - Project Based Work,Capital Integrated Transport Authority,ATKINS LIMITED,14/03/2022,"9,542.88 "
300005334,Grants - Other,Capital Innovation and Sector Development,APEX ELEMENTS LTD,11/03/2022,"9,587.65 "
300005126,Web Hosting,People & Assets,JAMES BLAKE SOLUTIONS LTD T/A JBi DIGITAL,17/02/2022,"9,600.00 "
300005479,Consultants - Project Based Work,Housing & Planning,STUART LARKIN AND ASSOCIATES LTD,23/03/2022,"9,645.00 "
300005120,Agency Costs - Temporary Staff,People & Assets,COMENSURA LTD,17/02/2022,"9,711.40 "
300004760,Consultants - Project Based Work,Transport,WSP UK LIMITED,07/01/2022,"9,735.84 "
300005292,Consultants - Project Based Work,Transport,WSP UK LIMITED,08/03/2022,"9,735.84 "
300005420,Consultants - Project Based Work,Capital Delivery Team,WSP UK LIMITED,18/03/2022,"9,815.58 "
300005370,Agency Costs - Temporary Staff,People & Assets,COMENSURA LTD,04/03/2022,"9,842.77 "
300005252,Consultants - Specialist Advice,Housing & Planning,STUART LARKIN AND ASSOCIATES LTD,03/03/2022,"10,000.00 "
300005362,Transport Operators - Supported Bus Services,Integrated Transport Authority,HCT Group Operations CIC - PREVIOUSLY CT PLUS,15/03/2022,"10,000.00 "
300002373,Transport Operators - Community Transport,Integrated Transport Authority,Four Towns & Vale Link Community Transport,25/02/2021,"10,383.33 "
300005054,Website Developemt,"Enterprise, Inward Investment & Trade",JAMES BLAKE SOLUTIONS LTD T/A JBi DIGITAL,08/02/2022,"10,500.00 "
300005065,Agency Costs - Temporary Staff,People & Assets,COMENSURA LTD,09/02/2022,"10,614.43 "
300004880,Agency Costs - Temporary Staff,People & Assets,COMENSURA LTD,26/01/2022,"10,666.04 "
300005434,Services - Other,"Enterprise, Inward Investment & Trade",DOTDIGITAL,21/03/2022,"10,765.00 "
300005264,Agency Costs - Temporary Staff,People & Assets,COMENSURA LTD,03/03/2022,"10,878.06 "
300005424,Consultants - Project Based Work,Capital Delivery Team,WSP UK LIMITED,18/03/2022,"10,969.72 "
300004899,Grants to LAs,Capital Grant Management & Assurance,SOUTH GLOUCESTERSHIRE COUNCIL,31/01/2022,"10,981.63 "
300005482,Agency Costs - Temporary Staff,People & Assets,COMENSURA LTD,23/03/2022,"11,032.36 "
300005285,Grants - Other,Capital Innovation and Sector Development,KINGSWAY LAUNDRY LTD,08/03/2022,"11,125.00 "
300004911,Consultants - Project Based Work,Capital Integrated Transport Authority,ATKINS LIMITED,31/01/2022,"11,147.13 "
300005072,Consultants - Project Based Work,Transport,AECOM,10/02/2022,"11,226.00 "
300005379,Equipment Purcahse - Contracts,People & Assets,NORTH SOMERSET COUNCIL,16/03/2022,"11,250.00 "
300004786,Services - Other,People & Assets,BEVAN BRITTAN LLP,10/01/2022,"11,251.50 "
300005455,Private Businesses,Innovation & Sector Development,Redacted - Sole Trader,21/03/2022,"11,256.87 "
300005497,Consultants - Project Based Work,Integrated Transport Authority,WSP UK LIMITED,23/03/2022,"11,266.04 "
300005478,Consultants - Project Based Work,Housing & Planning,STUART LARKIN AND ASSOCIATES LTD,23/03/2022,"11,302.50 "
300005462,Transport Operators - MetroBus,Integrated Transport Authority,ATKINS LIMITED,22/03/2022,"11,384.77 "
300005490,Consultants - Project Based Work,Housing & Planning,WSP UK LIMITED,23/03/2022,"11,448.43 "
300005516,Grants to LAs,Capital Grant Management & Assurance,BLACK SOUTH WEST NETWORK,24/03/2022,"11,501.01 "
300005128,Videography,"People, Skills & Inclusive Growth",Redacted - Sole Trader,17/02/2022,"11,602.09 "
300005367,Consultants - Project Based Work,Transport,AECOM,16/03/2022,"11,632.00 "
300005454,Other LAs - Bath & North East Somerset Council,Integrated Transport Authority,BATH & NORTH EAST SOMERSET COUNCIL GENERAL SUSPSENSE ACCOUNT,21/03/2022,"11,638.00 "
300005020,Grants - Other,Capital Innovation and Sector Development,299 LIGHTING LTD,07/02/2022,"11,641.26 "
300005165,Consultants - Other,Housing & Planning,WSP UK LIMITED,22/02/2022,"11,717.00 "
300004832,Services - Other,People & Assets,LEARNING NEXUS LTD,17/01/2022,"11,770.00 "
300005313,Consultants - Project Based Work,Capital Integrated Transport Authority,WSP UK LIMITED,08/03/2022,"11,809.40 "
300005480,Consultants - Project Based Work,Capital Capital & Delivery,WSP UK LIMITED,23/03/2022,"11,976.53 "
300004372,Equipment Purchase - Computer Software,"People, Skills & Inclusive Growth",Economic Modelling UK Ltd,12/11/2021,"12,000.00 "
300004705,Consultants - Project Based Work,Business & Skills,THE RESPUBLICA PARTNERSHIP LIMITED,24/12/2021,"12,000.00 "
300005131,Other LAs - Bath & North East Somerset Council,Integrated Transport Authority,BATH & NORTH EAST SOMERSET COUNCIL GENERAL SUSPSENSE ACCOUNT,17/02/2022,"12,075.00 "
300005306,Consultants - Project Based Work,Capital Delivery Team,AECOM,08/03/2022,"12,086.28 "
300005389,Consultants - Project Based Work,"Enterprise, Inward Investment & Trade",SPARK SOUTH WEST,17/03/2022,"12,101.67 "
300004762,Grants - Other,Capital Innovation and Sector Development,LEFT HANDED GIANT LTD,07/01/2022,"12,250.00 "
300005471,Seconded Staff Costs - Salary Costs,Integrated Transport Authority,SOUTH GLOUCESTERSHIRE COUNCIL,23/03/2022,"12,271.73 "
300004635,Consultants - Project Based Work,Transport,WSP UK LIMITED,15/12/2021,"12,377.95 "
300005428,Fees - External Training,Capital Delivery Team,THE KNOWLEDGE ACADEMY LIMITED,21/03/2022,"12,435.00 "
300005147,Grants - Other,Capital Innovation and Sector Development,VITCAS LTD,18/02/2022,"12,485.00 "
300005294,Consultants - Project Based Work,Capital Integrated Transport Authority,ATKINS LIMITED,08/03/2022,"12,490.38 "
300004819,Consultants - Project Based Work,Housing & Planning,AECOM,14/01/2022,"12,500.00 "
300005492,Consultants - Project Based Work,Housing & Planning,AECOM,23/03/2022,"12,500.00 "
300005335,Consultants - Project Based Work,Housing & Planning,AECOM,11/03/2022,"13,000.00 "
300005189,General Grants,South West Energy Hub,WILTSHIRE WILDLIFE COMMUNITY ENERGY LTD,24/02/2022,"13,000.00 "
300005387,Fees - Legal,Legal & Democratic Services,WEIGHTMANS LLP,17/03/2022,"13,480.00 "
300005076,Consultants - Project Based Work,Capital Delivery Team,ATKINS LIMITED,11/02/2022,"13,570.00 "
300005255,Grants - Other,Capital Innovation and Sector Development,SS GREAT BRITAIN TRADING LTD,03/03/2022,"13,770.00 "
300004864,Consultants - Project Based Work,Strategy & Policy,MEL RESEARCH LIMITED,24/01/2022,"13,930.00 "
300005394,Consultants - Project Based Work,Capital Integrated Transport Authority,ATKINS LIMITED,17/03/2022,"14,004.13 "
300005168,Educations Centres,"People, Skills & Inclusive Growth",BATH COLLEGE CURRENT ACCOUNT,22/02/2022,"14,240.82 "
300005320,Agency Costs - Temporary Staff,People & Assets,COMENSURA LTD,09/03/2022,"14,327.13 "
300005136,Educations Centres,"People, Skills & Inclusive Growth",CITY OF BRISTOL COLLEGE,17/02/2022,"14,512.13 "
300005297,Private Businesses,Innovation & Sector Development,CLEAN ENERGY PROSPECTOR LTD,08/03/2022,"14,592.10 "
300005295,Consultants - Project Based Work,Integrated Transport Authority,ATKINS LIMITED,08/03/2022,"14,898.00 "
300005319,Transport Operators - Bus Information,Integrated Transport Authority,Omnibus Solutions Ltd,09/03/2022,"15,000.00 "
300005028,Grants - Other,Capital Innovation and Sector Development,MOOR BEER COMPANY LTD,07/02/2022,"15,000.00 "
300004868,Grants - Other,Capital Innovation and Sector Development,THE BATH PUB COMPANY LTD,24/01/2022,"15,000.00 "
300005458,Other LAs - Bristol City Council,South West Energy Hub,HAMPSHIRE COUNTY COUNCIL,21/03/2022,"15,340.00 "
300005003,Other LAs - Other,"Enterprise, Inward Investment & Trade",DESTINATION BRISTOL,03/02/2022,"15,400.00 "
300005506,Grants - Other,"Enterprise, Inward Investment & Trade",DESTINATION BRISTOL,24/03/2022,"15,400.00 "
300004504,Consultants - Project Based Work,Capital Integrated Transport Authority,WSP UK LIMITED,30/11/2021,"16,012.08 "
300004670,Other LAs - Other,"People, Skills & Inclusive Growth",NEXT GEN SKILLS LIMITED,20/12/2021,"16,207.00 "
300005483,Equipment Purchase - General,People & Assets,NORTH SOMERSET COUNCIL,23/03/2022,"16,321.20 "
300005261,Seconded Staff Costs - Salary Costs,Strategy & Policy,TRANSPORT FOR LONDON,03/03/2022,"16,658.28 "
300005323,Consultants - Project Based Work,Capital Integrated Transport Authority,AECOM,09/03/2022,"16,696.41 "
300004788,Consultants - Project Based Work,Transport,AECOM,10/01/2022,"16,761.00 "
300005201,Private Businesses,Innovation & Sector Development,TRIGGER STUFF CIC,28/02/2022,"17,092.54 "
300004843,Consultants - Project Based Work,Capital Integrated Transport Authority,AECOM,19/01/2022,"17,145.07 "
300004742,Consultants - Project Based Work,Capital Delivery Team,COPPER CONSULTANCY LTD,05/01/2022,"17,700.00 "
300004767,Consultants - Project Based Work,Capital Integrated Transport Authority,WSP UK LIMITED,07/01/2022,"17,781.78 "
300004934,Consultants - Project Based Work,Capital Integrated Transport Authority,AECOM,02/02/2022,"17,803.50 "
300005304,Consultants - Project Based Work,Housing & Planning,ATKINS LIMITED,08/03/2022,"17,860.10 "
300004717,Transport Operators - Supported Bus Services,Integrated Transport Authority,First West of England Ltd,29/12/2021,"17,999.25 "
300004965,Transport Operators - Supported Bus Services,Integrated Transport Authority,First West of England Ltd,02/02/2022,"17,999.25 "
300005214,Transport Operators - Supported Bus Services,Integrated Transport Authority,First West of England Ltd,28/02/2022,"17,999.25 "
300005142,Educations Centres,"People, Skills & Inclusive Growth",WESTON COLLEGE,18/02/2022,"18,146.49 "
300004739,Consultants - Specialist Advice,Capital Delivery Team,KPMG LLP FEES,05/01/2022,"18,560.00 "
300005410,Web Hosting,"Enterprise, Inward Investment & Trade",ARCUS GLOBAL LIMITED,18/03/2022,"18,724.00 "
300005154,Educations Centres,"People, Skills & Inclusive Growth",UNIVERSITY OF THE WEST OF ENGLAND,21/02/2022,"18,727.44 "
300005178,General Grants,South West Energy Hub,MARSHFIELD COMMUNITY LAND TRUST,23/02/2022,"18,787.20 "
300004689,Consultants - Project Based Work,Integrated Transport Authority,ATKINS LIMITED,21/12/2021,"19,005.84 "
300004784,Consultants - Project Based Work,Housing & Planning,WSP UK LIMITED,10/01/2022,"19,250.00 "
300004240,Consultants - Project Based Work,Capital Capital & Delivery,WSP UK LIMITED,29/10/2021,"19,350.62 "
300004758,Consultants - Project Based Work,Transport,WSP UK LIMITED,07/01/2022,"19,403.60 "
300005188,Consultants - Project Based Work,Capital Delivery Team,ATKINS LIMITED,23/02/2022,"19,725.75 "
300004672,Consultants - Other,Housing & Planning,WSP UK LIMITED,20/12/2021,"19,750.00 "
300005118,Other LAs - Bristol City Council,Integrated Transport Authority,BRISTOL CITY COUNCIL GEN ACCOUNT,17/02/2022,"19,789.00 "
300005071,Videography,"Enterprise, Inward Investment & Trade",SUITED AND BOOTED STUDIOS CIC,10/02/2022,"19,878.46 "
300005348,Exhibition,"Enterprise, Inward Investment & Trade",WEST OF ENGLAND AEROSPACE FORUM,14/03/2022,"20,000.00 "
300005268,Consultants - Project Based Work,"Enterprise, Inward Investment & Trade",SOMERSET COUNTY COUNCIL,03/03/2022,"20,000.00 "
300005083,Other LAs - Bristol City Council,Capital Delivery Team,BRISTOL CITY COUNCIL GEN ACCOUNT,11/02/2022,"20,000.00 "
300004940,Other LAs - South Gloucestershire Council,"Enterprise, Inward Investment & Trade",SOUTH GLOUCESTERSHIRE COUNCIL,02/02/2022,"20,100.00 "
300005185,Consultants - Project Based Work,Capital Integrated Transport Authority,AECOM,23/02/2022,"20,168.00 "
300005452,Consultants - Legal,Capital Delivery Team,BEVAN BRITTAN LLP,21/03/2022,"20,252.00 "
300005061,Consultants - Project Based Work,Capital Delivery Team,ATKINS LIMITED,09/02/2022,"20,436.00 "
300004240,Consultants - Project Based Work,Capital Capital & Delivery,WSP UK LIMITED,29/10/2021,"20,497.84 "
300005423,Consultants - Project Based Work,Capital Delivery Team,WSP UK LIMITED,18/03/2022,"20,750.00 "
300005179,Educations Centres,"People, Skills & Inclusive Growth",BRISTOL CITY COUNCIL GEN ACCOUNT,23/02/2022,"20,760.07 "
300004969,Consultants - Project Based Work,Capital Integrated Transport Authority,WSP UK LIMITED,02/02/2022,"21,717.91 "
300005176,Educations Centres,"People, Skills & Inclusive Growth",NCC OPERATIONS LTD,23/02/2022,"22,265.19 "
300004955,Transport Operators - Supported Bus Services,Integrated Transport Authority,Redacted - Sole Trader,02/02/2022,"22,503.60 "
300005249,Transport Operators - Supported Bus Services,Integrated Transport Authority,Redacted - Sole Trader,03/03/2022,"22,661.95 "
300005346,General Grants,South West Energy Hub,CALNE TOWN COUNCIL,14/03/2022,"22,750.00 "
300005477,Consultancy Costs,Strategy & Policy,SPACE SKILLS LTD,23/03/2022,"22,800.00 "
300004757,Transport Operators - Supported Bus Services,Integrated Transport Authority,Redacted - Sole Trader,07/01/2022,"22,820.50 "
300005204,Other LAs - Bristol City Council,Grant Management & Assurance,BRISTOL CITY COUNCIL GEN ACCOUNT,28/02/2022,"22,895.29 "
300004807,General Grants,South West Energy Hub,FROME RENEWABLE ENERGY COMMUNITY,12/01/2022,"23,627.00 "
300005144,Service Charges,People & Assets,CWDTL LTD CLIENT AC RE NT COMMON RECEIPTS,18/02/2022,"23,683.98 "
300004936,Other LAs - Bath & North East Somerset Council,Grant Management & Assurance,BATH & NORTH EAST SOMERSET COUNCIL GENERAL SUSPSENSE ACCOUNT,02/02/2022,"23,750.00 "
300005336,Other LAs - Bristol City Council,Transport,BRISTOL CITY COUNCIL GEN ACCOUNT,11/03/2022,"24,280.00 "
300004887,Transport Operators - Bus Information,Integrated Transport Authority,A D Young Technical Services Ltd,26/01/2022,"24,979.00 "
300004803,Consultants - Project Based Work,Transport,ATKINS LIMITED,12/01/2022,"25,152.00 "
300005011,Other LAs - South Gloucestershire Council,Grant Management & Assurance,SOUTH GLOUCESTERSHIRE COUNCIL,07/02/2022,"25,467.00 "
300005033,Transport Operators - Supported Bus Services,Integrated Transport Authority,EUROCOACHES LTD,07/02/2022,"26,130.96 "
300004671,Consultants - Project Based Work,Capital Delivery Team,AECOM,20/12/2021,"26,133.25 "
300005500,Consultants - Project Based Work,Capital Delivery Team,AECOM,24/03/2022,"27,512.73 "
300005503,Other LAs - Other,"People, Skills & Inclusive Growth",NEXT GEN SKILLS LIMITED,24/03/2022,"27,973.76 "
300005098,Educations Centres,"People, Skills & Inclusive Growth",UNIVERSITY OF THE WEST OF ENGLAND,10/02/2022,"28,003.98 "
300005316,Consultants - Project Based Work,Capital Integrated Transport Authority,WSP UK LIMITED,08/03/2022,"28,653.37 "
300005010,Other LAs - Other,"People, Skills & Inclusive Growth",BATH SPA UNIVERSITY,07/02/2022,"28,714.00 "
300005002,Other LAs - Bath & North East Somerset Council,"Enterprise, Inward Investment & Trade",BATH & NORTH EAST SOMERSET COUNCIL GENERAL SUSPSENSE ACCOUNT,03/02/2022,"29,250.00 "
300005352,Transport Operators - Supported Bus Services,Integrated Transport Authority,HCT Group Operations CIC - PREVIOUSLY CT PLUS,14/03/2022,"29,333.52 "
300004923,Consultants - Annual Contract,Financial Services,BATH & NORTH EAST SOMERSET COUNCIL GENERAL SUSPSENSE ACCOUNT,31/01/2022,"30,000.00 "
300004769,Consultants - Project Based Work,Capital Integrated Transport Authority,WSP UK LIMITED,07/01/2022,"30,011.88 "
300004739,Consultants - Project Based Work,Integrated Transport Authority,KPMG LLP FEES,05/01/2022,"30,530.00 "
300005435,Other LAs - Bath & North East Somerset Council,Transport,BATH & NORTH EAST SOMERSET COUNCIL GENERAL SUSPSENSE ACCOUNT,21/03/2022,"30,669.00 "
300004913,Consultants - Project Based Work,Capital Delivery Team,AECOM,31/01/2022,"31,334.79 "
300005520,Printing,Strategy & Policy,ICHOOSR LTD,25/03/2022,"32,069.60 "
300005202,Other LAs - Bath & North East Somerset Council,Grant Management & Assurance,BATH & NORTH EAST SOMERSET COUNCIL GENERAL SUSPSENSE ACCOUNT,28/02/2022,"32,413.34 "
300005498,Consultants - Project Based Work,Capital Delivery Team,KPMG LLP FEES,23/03/2022,"36,480.00 "
300005156,Educations Centres,"People, Skills & Inclusive Growth",WESTERN TRAINING PROVIDERS LIMITED,22/02/2022,"36,587.67 "
300004746,Equipment Purchase - General,People & Assets,NORTH SOMERSET COUNCIL,05/01/2022,"36,667.00 "
300004977,Equipment Purchase - General,People & Assets,NORTH SOMERSET COUNCIL,02/02/2022,"36,667.00 "
300005137,Educations Centres,"People, Skills & Inclusive Growth",GWE BUSINESS WEST LTD,17/02/2022,"37,709.71 "
300004726,Consultants - Project Based Work,Capital Capital & Delivery,WSP UK LIMITED,04/01/2022,"39,800.47 "
300005518,Consultants - Other,South West Energy Hub,KIWA LTD,25/03/2022,"40,000.00 "
300005224,Grants to LAs,Capital Grant Management & Assurance,SOUTH GLOUCESTERSHIRE COUNCIL,28/02/2022,"41,201.85 "
300005187,Consultants - Project Based Work,Integrated Transport Authority,WSP UK LIMITED,23/02/2022,"41,950.00 "
300005267,Consultants - Project Based Work,"Enterprise, Inward Investment & Trade",SOMERSET COUNTY COUNCIL,03/03/2022,"43,000.00 "
300005177,Educations Centres,"People, Skills & Inclusive Growth",YTKO LTD,23/02/2022,"44,314.29 "
300005012,Other LAs - South Gloucestershire Council,Grant Management & Assurance,SOUTH GLOUCESTERSHIRE COUNCIL,07/02/2022,"44,633.00 "
300005544,Other LAs - Bath & North East Somerset Council,Capital Delivery Team,BATH & NORTH EAST SOMERSET COUNCIL GENERAL SUSPSENSE ACCOUNT,28/03/2022,"44,981.06 "
300005234,Grants to LAs,Capital Grant Management & Assurance,SOUTH GLOUCESTERSHIRE COUNCIL,02/03/2022,"45,338.16 "
300004983,Other LAs - South Gloucestershire Council,"People, Skills & Inclusive Growth",SOUTH GLOUCESTERSHIRE COUNCIL,02/02/2022,"46,689.52 "
300004715,Consultants - Project Based Work,Capital Integrated Transport Authority,WSP UK LIMITED,29/12/2021,"49,204.25 "
300005502,Seconded Staff Costs - Salary Costs,"People, Skills & Inclusive Growth",WESTON COLLEGE,24/03/2022,"49,644.00 "
300004739,Consultants - Project Based Work,Integrated Transport Authority,KPMG LLP FEES,05/01/2022,"49,820.00 "
300005144,"Rents, Wayleaves & Tithes",People & Assets,CWDTL LTD CLIENT AC RE NT COMMON RECEIPTS,18/02/2022,"50,545.00 "
300004984,Other LAs - Bath & North East Somerset Council,"People, Skills & Inclusive Growth",BATH & NORTH EAST SOMERSET COUNCIL GENERAL SUSPSENSE ACCOUNT,02/02/2022,"51,660.09 "
300004820,Transport Operators - Supported Bus Services,Integrated Transport Authority,EUROCOACHES LTD,10/01/2022,"51,865.79 "
300004900,Other LAs - South Gloucestershire Council,Grant Management & Assurance,SOUTH GLOUCESTERSHIRE COUNCIL,31/01/2022,"52,170.66 "
300005511,Transport Operators - Supported Bus Services,Integrated Transport Authority,First West of England Ltd,24/03/2022,"52,413.68 "
300005197,Other LAs - Other,Integrated Transport Authority,Wiltshire Council,25/02/2022,"54,686.00 "
300005007,Other LAs - Bristol City Council,"Enterprise, Inward Investment & Trade",BRISTOL CITY COUNCIL GEN ACCOUNT,03/02/2022,"54,850.00 "
300005014,Other LAs - South Gloucestershire Council,Grant Management & Assurance,SOUTH GLOUCESTERSHIRE COUNCIL,07/02/2022,"54,943.00 "
300004849,Fees - Business Case Reviews,Innovation & Sector Development,UK BUSINESS ANGELS ASSOCIATION,19/01/2022,"54,999.00 "
300004933,Fees - Other,Mayoral,BRISTOL CITY COUNCIL (ELECTIONS),01/02/2022,"55,544.55 "
300005372,Transport Operators - Supported Bus Services,Integrated Transport Authority,EUROCOACHES LTD,16/03/2022,"58,560.82 "
300005135,Consultants - Project Based Work,Capital Delivery Team,KPMG LLP FEES,17/02/2022,"60,000.00 "
300004946,Other LAs - Bath & North East Somerset Council,Grant Management & Assurance,BATH & NORTH EAST SOMERSET COUNCIL GENERAL SUSPSENSE ACCOUNT,02/02/2022,"62,494.96 "
300004812,Consultants - Project Based Work,Capital Delivery Team,AECOM,13/01/2022,"66,306.26 "
300005155,Educations Centres,"People, Skills & Inclusive Growth",Redacted - Sole Trader,22/02/2022,"67,252.70 "
300004795,Consultants - Project Based Work,Transport,WSP UK LIMITED,11/01/2022,"68,508.19 "
300005468,Purchase of Equipment - ICT Infrastructure,Innovation & Sector Development,NEXTGENACCESS LIMITED,22/03/2022,"70,000.00 "
300005169,Educations Centres,"People, Skills & Inclusive Growth",GWE BUSINESS WEST LTD,22/02/2022,"75,635.57 "
300005495,Other LAs - Bath & North East Somerset Council,Integrated Transport Authority,BATH & NORTH EAST SOMERSET COUNCIL GENERAL SUSPSENSE ACCOUNT,23/03/2022,"79,000.00 "
300005496,Other LAs - Bath & North East Somerset Council,Integrated Transport Authority,BATH & NORTH EAST SOMERSET COUNCIL GENERAL SUSPSENSE ACCOUNT,23/03/2022,"79,000.00 "
300005000,Transport Operators - Supported Bus Services,Integrated Transport Authority,HCT Group Operations CIC - PREVIOUSLY CT PLUS,03/02/2022,"79,955.31 "
300005215,Consultants - Project Based Work,Capital Delivery Team,KPMG LLP FEES,28/02/2022,"80,000.00 "
300005226,Transport Operators - Supported Bus Services,Integrated Transport Authority,HCT Group Operations CIC - PREVIOUSLY CT PLUS,28/02/2022,"80,293.01 "
300004872,Transport Operators - Supported Bus Services,Integrated Transport Authority,HCT Group Operations CIC - PREVIOUSLY CT PLUS,24/01/2022,"80,857.41 "
300005415,Other LAs - Bath & North East Somerset Council,Transport,BATH & NORTH EAST SOMERSET COUNCIL GENERAL SUSPSENSE ACCOUNT,18/03/2022,"88,391.42 "
300005183,Transport Operators - RTI,Integrated Transport Authority,Idox Software Ltd,23/02/2022,"92,120.00 "
300005205,Transport Operators - RTI,Integrated Transport Authority,Idox Software Ltd,28/02/2022,"92,195.00 "
300005022,Transport Operators - Supported Bus Services,Integrated Transport Authority,First West of England Ltd,07/02/2022,"92,688.27 "
300005248,Transport Operators - Supported Bus Services,Integrated Transport Authority,First West of England Ltd,03/03/2022,"92,688.27 "
300005526,Consultants - Project Based Work,Transport,WSP UK LIMITED,25/03/2022,"93,004.60 "
300005341,Transport Operators - RTI,Integrated Transport Authority,Idox Software Ltd,11/03/2022,"93,950.00 "
300005013,Other LAs - South Gloucestershire Council,Grant Management & Assurance,SOUTH GLOUCESTERSHIRE COUNCIL,07/02/2022,"95,371.83 "
300004943,Other LAs - Bath & North East Somerset Council,Grant Management & Assurance,BATH & NORTH EAST SOMERSET COUNCIL GENERAL SUSPSENSE ACCOUNT,02/02/2022,"108,154.18 "
300005473,Consultants - Project Based Work,Transport,WSP UK LIMITED,23/03/2022,"108,246.54 "
300005363,Other LAs - Bath & North East Somerset Council,Grant Management & Assurance,BATH & NORTH EAST SOMERSET COUNCIL GENERAL SUSPSENSE ACCOUNT,16/03/2022,"117,858.19 "
300005200,Other LAs - Bath & North East Somerset Council,Grant Management & Assurance,BATH & NORTH EAST SOMERSET COUNCIL GENERAL SUSPSENSE ACCOUNT,28/02/2022,"121,709.42 "
300005406,Consultants - Project Based Work,Transport,WSP UK LIMITED,18/03/2022,"126,259.84 "
300004939,Grants to LAs,Capital Grant Management & Assurance,SOUTH GLOUCESTERSHIRE COUNCIL,02/02/2022,"129,805.00 "
300005507,Grants - Other,"Enterprise, Inward Investment & Trade",DESTINATION BRISTOL,24/03/2022,"136,397.00 "
300005236,Other LAs - Bristol City Council,"People, Skills & Inclusive Growth",BRISTOL CITY COUNCIL GEN ACCOUNT,02/03/2022,"145,464.83 "
300005512,Transport Operators - Supported Bus Services,Integrated Transport Authority,First West of England Ltd,24/03/2022,"158,205.37 "
300004824,Transport Operators - Supported Bus Services,Integrated Transport Authority,Stagecoach Service Ltd,14/01/2022,"160,378.27 "
300004826,Transport Operators - Supported Bus Services,Integrated Transport Authority,Stagecoach Service Ltd,14/01/2022,"160,392.27 "
300004825,Transport Operators - Supported Bus Services,Integrated Transport Authority,Stagecoach Service Ltd,14/01/2022,"160,406.97 "
300004823,Transport Operators - Supported Bus Services,Integrated Transport Authority,Stagecoach Service Ltd,14/01/2022,"160,431.17 "
300004991,Other LAs - Bristol City Council,Capital Delivery Team,BRISTOL CITY COUNCIL GEN ACCOUNT,02/02/2022,"161,581.38 "
300005513,Grants to LAs,Capital Grant Management & Assurance,BATH & NORTH EAST SOMERSET COUNCIL GENERAL SUSPSENSE ACCOUNT,24/03/2022,"195,861.48 "
300005103,General Grants,Grant Management & Assurance,SCHOOL FOR SOCIAL ENTREPRENEURS,14/02/2022,"206,380.65 "
300004815,Fees - Other,Mayoral,BATH & NORTH EAST SOMERSET COUNCIL GENERAL SUSPSENSE ACCOUNT,13/01/2022,"208,103.66 "
300005291,Transport Operators - Supported Bus Services,Integrated Transport Authority,Stagecoach Service Ltd,08/03/2022,"209,057.23 "
300005047,Transport Operators - Supported Bus Services,Integrated Transport Authority,Stagecoach Service Ltd,08/02/2022,"209,059.53 "
300005196,Consultants - Project Based Work,Capital Delivery Team,NETWORK RAIL INFRASTRUCTURE LTD,24/02/2022,"255,895.54 "
300005096,Fees - Other,Mayoral,SOUTH GLOUCESTERSHIRE COUNCIL,10/02/2022,"273,872.34 "
300004935,Grants to LAs,Capital Grant Management & Assurance,SOUTH GLOUCESTERSHIRE COUNCIL,02/02/2022,"282,468.82 "
300004937,Grants to LAs,Capital Grant Management & Assurance,SOUTH GLOUCESTERSHIRE COUNCIL,02/02/2022,"325,082.32 "
300004796,Transport Operators - Supported Bus Services,Integrated Transport Authority,First West of England Ltd,11/01/2022,"370,753.08 "
300005106,Grants to LAs,Capital Grant Management & Assurance,BATH & NORTH EAST SOMERSET COUNCIL GENERAL SUSPSENSE ACCOUNT,14/02/2022,"378,976.26 "
300004942,Grants to LAs,Capital Grant Management & Assurance,BRISTOL CITY COUNCIL GEN ACCOUNT,02/02/2022,"387,421.63 "
300005459,Grants to LAs,Capital Grant Management & Assurance,BATH & NORTH EAST SOMERSET COUNCIL GENERAL SUSPSENSE ACCOUNT,21/03/2022,"415,409.00 "
300004920,Grants to LAs,Capital Grant Management & Assurance,SOUTH GLOUCESTERSHIRE COUNCIL,31/01/2022,"534,328.16 "
300005375,Consultants - Project Based Work,Capital Capital & Delivery,NETWORK RAIL INFRASTRUCTURE LTD,16/03/2022,"539,894.83 "
300004947,Other LAs - Other,Grant Management & Assurance,UNIVERSITY OF BRISTOL (NATIONAL COMPOSITES CENTRE),02/02/2022,"674,437.92 "
300004938,Grants to LAs,Capital Grant Management & Assurance,SOUTH GLOUCESTERSHIRE COUNCIL,02/02/2022,"684,765.86 "
300004944,Grants to LAs,Capital Grant Management & Assurance,BATH & NORTH EAST SOMERSET COUNCIL GENERAL SUSPSENSE ACCOUNT,02/02/2022,"702,220.45 "
300005505,Grants to LAs,Capital Grant Management & Assurance,SOUTH GLOUCESTERSHIRE COUNCIL,24/03/2022,"1,646,407.58 "
300004901,Grants to LAs,Capital Grant Management & Assurance,SOUTH GLOUCESTERSHIRE COUNCIL,31/01/2022,"2,132,095.36 "
300005199,Grants to LAs,Capital Grant Management & Assurance,SOUTH GLOUCESTERSHIRE COUNCIL,28/02/2022,"3,617,166.75 "
